[Event "Live Chess"]
[Site "Chess.com"]
[Date "2023.05.20"]
[Round "-"]
[White "yeetpizza74"]
[Black "Olisingapore"]
[Result "0-1"]
[WhiteElo "447"]
[BlackElo "1950"]
[TimeControl "300"]
[EndTime "9:32:18 PDT"]
[Termination "Olisingapore won by checkmate"]

1. e4 {[%clk 0:04:58.5]} 1... c5 {[%clk 0:04:56.6]} 2. d4 {[%clk 0:04:56.6]}
2... cxd4 {[%clk 0:04:55.6]} 3. Qxd4 {[%clk 0:04:55.7]} 3... Nc6 {[%clk
0:04:54.4]} 4. Qd1 {[%clk 0:04:53.5]} 4... g6 {[%clk 0:04:53.3]} 5. Nc3 {[%clk
0:04:51.7]} 5... Bg7 {[%clk 0:04:52.5]} 6. Nf3 {[%clk 0:04:48.4]} 6... e6 {[%clk
0:04:51.9]} 7. Bg5 {[%clk 0:04:37.4]} 7... Nge7 {[%clk 0:04:47.1]} 8. Bxe7
{[%clk 0:04:30.7]} 8... Qxe7 {[%clk 0:04:45.6]} 9. Bc4 {[%clk 0:04:25.3]} 9...
Qb4 {[%clk 0:04:42.7]} 10. Nd2 {[%clk 0:04:16.6]} 10... Bxc3 {[%clk 0:04:33.1]}
11. a3 {[%clk 0:03:57.3]} 11... Bxd2+ {[%clk 0:04:31]} 12. Qxd2 {[%clk
0:03:50.1]} 12... Qxc4 {[%clk 0:04:29.4]} 13. O-O-O {[%clk 0:03:41.2]} 13... Qa2
{[%clk 0:04:24.2]} 14. Qe1 {[%clk 0:03:27.2]} 14... O-O {[%clk 0:04:07.7]} 15.
g4 {[%clk 0:03:17.2]} 15... Ne5 {[%clk 0:03:54]} 16. Qe2 {[%clk 0:02:47.4]}
16... Nc4 {[%clk 0:03:24.2]} 17. c3 {[%clk 0:02:40.6]} 17... d5 {[%clk
0:03:05.2]} 18. Kc2 {[%clk 0:02:25.9]} 18... Qxb2+ {[%clk 0:02:57.7]} 19. Kd3
{[%clk 0:02:20.7]} 19... dxe4+ {[%clk 0:02:48.9]} 20. Qxe4 {[%clk 0:02:05.5]}
20... Rd8+ {[%clk 0:02:39.8]} 21. Kxc4 {[%clk 0:01:59.8]} 21... b5+ {[%clk
0:02:39.2]} 22. Kc5 {[%clk 0:01:56.2]} 22... Qxc3+ {[%clk 0:02:37.8]} 23. Kxb5
{[%clk 0:01:53.1]} 23... Rb8+ {[%clk 0:02:28.3]} 24. Ka4 {[%clk 0:01:47.5]}
24... Bd7+ {[%clk 0:02:22.4]} 25. Rxd7 {[%clk 0:01:43.5]} 25... Rxd7 {[%clk
0:02:20.2]} 26. Qe2 {[%clk 0:01:24.3]} 26... Qb3+ {[%clk 0:02:17]} 27. Ka5
{[%clk 0:01:22.2]} 27... Qxa3# {[%clk 0:02:16.5]} 0-1

[Event "Live Chess"]
[Site "Chess.com"]
[Date "2023.05.20"]
[Round "-"]
[White "MrDodgy"]
[Black "RedRook90"]
[Result "1-0"]
[WhiteElo "2325"]
[BlackElo "1966"]
[TimeControl "300"]
[EndTime "9:32:21 PDT"]
[Termination "MrDodgy won by resignation"]

1. d4 {[%clk 0:04:56.9]} 1... c6 {[%clk 0:04:59.5]} 2. c4 {[%clk 0:04:53.6]}
2... e6 {[%clk 0:04:58.7]} 3. e4 {[%clk 0:04:51.1]} 3... d5 {[%clk 0:04:58.4]}
4. Nc3 {[%clk 0:04:46.1]} 4... Bb4 {[%clk 0:04:49.8]} 5. cxd5 {[%clk 0:04:42.2]}
5... exd5 {[%clk 0:04:47.4]} 6. exd5 {[%clk 0:04:38]} 6... Qxd5 {[%clk
0:04:41.8]} 7. Nf3 {[%clk 0:04:30.6]} 7... Bg4 {[%clk 0:04:38.4]} 8. Be2 {[%clk
0:04:25.2]} 8... Nf6 {[%clk 0:04:31.2]} 9. O-O {[%clk 0:04:23.3]} 9... Bxc3
{[%clk 0:04:30.7]} 10. bxc3 {[%clk 0:04:21.9]} 10... O-O {[%clk 0:04:30.3]} 11.
h3 {[%clk 0:04:19.2]} 11... Bh5 {[%clk 0:04:28.2]} 12. Re1 {[%clk 0:03:51.6]}
12... Nbd7 {[%clk 0:04:26.3]} 13. Ba3 {[%clk 0:03:47.6]} 13... Rfe8 {[%clk
0:04:25.1]} 14. c4 {[%clk 0:03:12.9]} 14... Qf5 {[%clk 0:04:17.4]} 15. Rb1
{[%clk 0:03:03.3]} 15... b6 {[%clk 0:04:14.8]} 16. Ne5 {[%clk 0:02:51.8]} 16...
Nxe5 {[%clk 0:03:57.2]} 17. Bxh5 {[%clk 0:02:43.7]} 17... Nxc4 {[%clk 0:03:52]}
18. Bg4 {[%clk 0:02:33.1]} 18... Nxg4 {[%clk 0:03:45.3]} 19. hxg4 {[%clk
0:02:33]} 19... Rxe1+ {[%clk 0:03:34.8]} 20. Qxe1 {[%clk 0:02:32.9]} 20... Qxg4
{[%clk 0:03:32.5]} 21. Bb4 {[%clk 0:02:02]} 21... Qxd4 {[%clk 0:03:24.1]} 22.
Bc3 {[%clk 0:01:54.3]} 22... Qd7 {[%clk 0:02:53.4]} 23. Rd1 {[%clk 0:01:46.3]}
23... Qe8 {[%clk 0:02:52.1]} 24. Qf1 {[%clk 0:01:39.9]} 24... b5 {[%clk
0:02:33.2]} 25. Qd3 {[%clk 0:01:35.8]} 25... h6 {[%clk 0:02:15.6]} 26. Qg3
{[%clk 0:01:25.3]} 26... f6 {[%clk 0:02:03.8]} 27. Bxf6 {[%clk 0:01:20.1]} 27...
Qf7 {[%clk 0:01:54.1]} 28. Bc3 {[%clk 0:01:09]} 28... Rf8 {[%clk 0:01:52]} 29.
Rd4 {[%clk 0:01:02.8]} 29... Kh7 {[%clk 0:01:27.9]} 30. Rg4 {[%clk 0:00:56]}
30... g6 {[%clk 0:01:23.2]} 31. Rh4 {[%clk 0:00:39.1]} 31... Nb6 {[%clk
0:01:18.9]} 32. Rxh6+ {[%clk 0:00:32.2]} 1-0

[Event "Live Chess"]
[Site "Chess.com"]
[Date "2023.05.20"]
[Round "-"]
[White "ethanredball"]
[Black "YrrriKharkiv"]
[Result "0-1"]
[WhiteElo "664"]
[BlackElo "2142"]
[TimeControl "300"]
[EndTime "9:32:23 PDT"]
[Termination "YrrriKharkiv won by resignation"]

1. e4 {[%clk 0:04:59]} 1... e6 {[%clk 0:04:58.9]} 2. Qf3 {[%clk 0:04:57.7]} 2...
d5 {[%clk 0:04:58.5]} 3. exd5 {[%clk 0:04:56.4]} 3... exd5 {[%clk 0:04:57.5]} 4.
Bb5+ {[%clk 0:04:54.4]} 4... c6 {[%clk 0:04:56.3]} 5. Bd3 {[%clk 0:04:53.2]}
5... Nf6 {[%clk 0:04:55.3]} 6. Nc3 {[%clk 0:04:52.2]} 6... Nbd7 {[%clk
0:04:54.2]} 7. Bf5 {[%clk 0:04:50.2]} 7... Bd6 {[%clk 0:04:51.5]} 8. Bxd7+
{[%clk 0:04:47.3]} 8... Bxd7 {[%clk 0:04:50.1]} 9. Nge2 {[%clk 0:04:46.2]} 9...
O-O {[%clk 0:04:47.5]} 10. O-O {[%clk 0:04:42.2]} 10... Re8 {[%clk 0:04:42.4]}
11. Re1 {[%clk 0:04:39.6]} 11... b5 {[%clk 0:04:38.9]} 12. h3 {[%clk 0:04:27.5]}
12... b4 {[%clk 0:04:35]} 13. Nb1 {[%clk 0:04:25.9]} 13... c5 {[%clk 0:04:15.5]}
14. c3 {[%clk 0:04:20.5]} 14... Bc6 {[%clk 0:04:11.2]} 0-1

[Event "Live Chess"]
[Site "Chess.com"]
[Date "2023.05.20"]
[Round "-"]
[White "NatashaRegan"]
[Black "Zeraora719"]
[Result "1-0"]
[WhiteElo "1882"]
[BlackElo "1280"]
[TimeControl "300"]
[EndTime "9:32:24 PDT"]
[Termination "NatashaRegan won by checkmate"]

1. Nf3 {[%clk 0:04:56]} 1... d5 {[%clk 0:04:56.9]} 2. c4 {[%clk 0:04:53.6]} 2...
dxc4 {[%clk 0:04:55.1]} 3. Na3 {[%clk 0:04:50.7]} 3... f6 {[%clk 0:04:50]} 4. g3
{[%clk 0:04:45.4]} 4... e5 {[%clk 0:04:47.3]} 5. Bg2 {[%clk 0:04:43.2]} 5... e4
{[%clk 0:04:42.8]} 6. Ng1 {[%clk 0:04:38.5]} 6... Bxa3 {[%clk 0:04:33]} 7. Qa4+
{[%clk 0:04:35.2]} 7... Bd7 {[%clk 0:04:23.4]} 8. Qxa3 {[%clk 0:04:33.1]} 8...
Bg4 {[%clk 0:04:17.9]} 9. Bxe4 {[%clk 0:04:29.9]} 9... Qe7 {[%clk 0:04:14.8]}
10. Qxe7+ {[%clk 0:04:27]} 10... Kxe7 {[%clk 0:04:13.1]} 11. Bxb7 {[%clk
0:04:25.2]} 11... Bd7 {[%clk 0:03:39.9]} 12. Bxa8 {[%clk 0:04:20.9]} 12... c6
{[%clk 0:03:38.7]} 13. Nf3 {[%clk 0:04:17.6]} 13... g5 {[%clk 0:03:35.7]} 14. b3
{[%clk 0:04:13.3]} 14... cxb3 {[%clk 0:03:33.8]} 15. axb3 {[%clk 0:04:12.4]}
15... g4 {[%clk 0:03:32.4]} 16. Nd4 {[%clk 0:04:10.2]} 16... Kd8 {[%clk
0:03:18.7]} 17. Rxa7 {[%clk 0:04:04.1]} 17... f5 {[%clk 0:03:04.6]} 18. Bb2
{[%clk 0:03:55.8]} 18... c5 {[%clk 0:03:02.8]} 19. Rxd7+ {[%clk 0:03:47.3]}
19... Kxd7 {[%clk 0:02:59.3]} 20. Nxf5 {[%clk 0:03:46.1]} 20... Nf6 {[%clk
0:02:56.9]} 21. Bxf6 {[%clk 0:03:43.7]} 21... Rf8 {[%clk 0:02:53.9]} 22. Be5
{[%clk 0:03:40.6]} 22... Rg8 {[%clk 0:02:52.7]} 23. Bxb8 {[%clk 0:03:37.6]}
23... Rf8 {[%clk 0:02:50.7]} 24. Bd6 {[%clk 0:03:29.6]} 24... Rxa8 {[%clk
0:02:46.6]} 25. O-O {[%clk 0:03:24.2]} 25... Ra2 {[%clk 0:02:37]} 26. Bf4 {[%clk
0:03:20.1]} 26... Ke6 {[%clk 0:02:32.9]} 27. Nh6 {[%clk 0:03:15.6]} 27... Ra1
{[%clk 0:02:26.2]} 28. Rxa1 {[%clk 0:03:12.5]} 28... c4 {[%clk 0:02:22.4]} 29.
bxc4 {[%clk 0:03:09.3]} 29... Kf6 {[%clk 0:02:19.6]} 30. c5 {[%clk 0:03:06.2]}
30... Kg6 {[%clk 0:02:16.3]} 31. c6 {[%clk 0:03:03.3]} 31... Kh5 {[%clk
0:02:13.2]} 32. c7 {[%clk 0:03:01.1]} 32... Kg6 {[%clk 0:02:09]} 33. c8=Q {[%clk
0:02:59.3]} 33... Kh5 {[%clk 0:02:06.4]} 34. Qf5# {[%clk 0:02:56.7]} 1-0

[Event "Live Chess"]
[Site "Chess.com"]
[Date "2023.05.20"]
[Round "-"]
[White "VovaOvchar1990"]
[Black "amazinggoalkeeper"]
[Result "1-0"]
[WhiteElo "1201"]
[BlackElo "499"]
[TimeControl "300"]
[EndTime "9:32:24 PDT"]
[Termination "VovaOvchar1990 won by resignation"]

1. e4 {[%clk 0:04:58.2]} 1... e5 {[%clk 0:04:57.9]} 2. Bc4 {[%clk 0:04:57.6]}
2... Nc6 {[%clk 0:04:56.4]} 3. Qf3 {[%clk 0:04:56.9]} 3... f6 {[%clk 0:04:53.5]}
4. Nc3 {[%clk 0:04:52.9]} 4... Nd4 {[%clk 0:04:53.4]} 5. Qd1 {[%clk 0:04:46.6]}
5... b6 {[%clk 0:04:49.5]} 6. d3 {[%clk 0:04:45]} 6... Bb7 {[%clk 0:04:46.8]} 7.
Nf3 {[%clk 0:04:42.8]} 7... Nxf3+ {[%clk 0:04:44.6]} 8. Qxf3 {[%clk 0:04:40.9]}
8... Bd6 {[%clk 0:04:43.9]} 9. Bxg8 {[%clk 0:04:32.8]} 9... Rxg8 {[%clk
0:04:43]} 10. Qh5+ {[%clk 0:04:32.7]} 10... g6 {[%clk 0:04:42]} 11. Qxh7 {[%clk
0:04:31.8]} 11... Rf8 {[%clk 0:04:37.4]} 12. Qxg6+ {[%clk 0:04:28.7]} 12... Rf7
{[%clk 0:04:36.1]} 13. Bh6 {[%clk 0:04:25.2]} 13... Qe7 {[%clk 0:04:31.2]} 14.
Qg8+ {[%clk 0:04:18.2]} 14... Rf8 {[%clk 0:04:27.6]} 15. Qxf8+ {[%clk
0:04:16.5]} 15... Qxf8 {[%clk 0:04:25.2]} 16. Bxf8 {[%clk 0:04:16.4]} 16... Bxf8
{[%clk 0:04:23.8]} 17. O-O-O {[%clk 0:04:16.3]} 17... O-O-O {[%clk 0:04:19.1]}
18. Rdg1 {[%clk 0:04:16.2]} 18... a5 {[%clk 0:04:15.9]} 19. h4 {[%clk
0:04:15.6]} 19... c6 {[%clk 0:04:13.6]} 20. h5 {[%clk 0:04:14.4]} 20... b5
{[%clk 0:04:11.3]} 21. h6 {[%clk 0:04:13.2]} 21... Be7 {[%clk 0:04:10.1]} 22. h7
{[%clk 0:04:11.9]} 22... Rh8 {[%clk 0:04:08.2]} 23. g4 {[%clk 0:04:09.4]} 23...
b4 {[%clk 0:04:05.7]} 24. Ne2 {[%clk 0:04:05.2]} 24... c5 {[%clk 0:04:01.8]} 25.
Rh6 {[%clk 0:04:03.7]} 25... a4 {[%clk 0:03:59.5]} 26. Rgh1 {[%clk 0:04:02.4]}
26... Ba6 {[%clk 0:03:58.4]} 27. Rg6 {[%clk 0:04:00.4]} 27... Kc7 {[%clk
0:03:51.6]} 28. Rg8 {[%clk 0:03:58.6]} 1-0

[Event "Live Chess"]
[Site "Chess.com"]
[Date "2023.05.20"]
[Round "-"]
[White "JoshMcK"]
[Black "TheSmoulderingMaster"]
[Result "1-0"]
[WhiteElo "1540"]
[BlackElo "1791"]
[TimeControl "300"]
[EndTime "9:32:25 PDT"]
[Termination "JoshMcK won by resignation"]

1. e4 {[%clk 0:04:59.2]} 1... c5 {[%clk 0:04:59]} 2. c3 {[%clk 0:04:54.8]} 2...
d5 {[%clk 0:04:57.9]} 3. exd5 {[%clk 0:04:53.9]} 3... Qxd5 {[%clk 0:04:57]} 4.
d4 {[%clk 0:04:53.8]} 4... Nc6 {[%clk 0:04:54]} 5. Nf3 {[%clk 0:04:52.3]} 5...
Bg4 {[%clk 0:04:52.3]} 6. dxc5 {[%clk 0:04:48.6]} 6... Qxc5 {[%clk 0:04:50.7]}
7. Na3 {[%clk 0:04:40.6]} 7... e6 {[%clk 0:04:48.4]} 8. Nb5 {[%clk 0:04:35.8]}
8... Rc8 {[%clk 0:04:38.4]} 9. Be3 {[%clk 0:04:28]} 9... Qh5 {[%clk 0:04:17.4]}
10. Nxa7 {[%clk 0:04:13.9]} 10... Nxa7 {[%clk 0:04:14.3]} 11. Bxa7 {[%clk
0:04:13.8]} 11... Nf6 {[%clk 0:04:08.5]} 12. Qa4+ {[%clk 0:04:03.7]} 12... Nd7
{[%clk 0:03:57.9]} 13. Bb5 {[%clk 0:04:00.6]} 13... e5 {[%clk 0:03:54.7]} 14. h3
{[%clk 0:03:54.8]} 14... Be6 {[%clk 0:03:40.7]} 15. O-O {[%clk 0:03:47.3]} 15...
Bd6 {[%clk 0:03:33.2]} 16. Rad1 {[%clk 0:03:40.5]} 16... Ke7 {[%clk 0:03:19.2]}
17. Rxd6 {[%clk 0:03:30.1]} 17... Kxd6 {[%clk 0:03:17.8]} 18. Rd1+ {[%clk
0:03:29.3]} 18... Bd5 {[%clk 0:03:13.9]} 19. Bxd7 {[%clk 0:03:22.4]} 19... Ra8
{[%clk 0:03:12.7]} 20. Qb4+ {[%clk 0:03:06.6]} 20... Kxd7 {[%clk 0:03:09.4]} 21.
Rxd5+ {[%clk 0:03:03.2]} 21... Ke6 {[%clk 0:03:07.9]} 22. Rxe5+ {[%clk
0:03:00.3]} 22... Qxe5 {[%clk 0:03:06]} 23. Nxe5 {[%clk 0:02:59.2]} 23... Kxe5
{[%clk 0:03:05.6]} 24. Bd4+ {[%clk 0:02:54.4]} 24... Ke4 {[%clk 0:03:03.5]} 25.
Bxg7+ {[%clk 0:02:52.6]} 1-0

[Event "Live Chess"]
[Site "Chess.com"]
[Date "2023.05.20"]
[Round "-"]
[White "ranvir123"]
[Black "SimonB4a"]
[Result "0-1"]
[WhiteElo "837"]
[BlackElo "2176"]
[TimeControl "300"]
[EndTime "9:32:31 PDT"]
[Termination "SimonB4a won on time"]

1. e4 {[%clk 0:04:57.6]} 1... e6 {[%clk 0:04:58.9]} 2. d4 {[%clk 0:04:56]} 2...
d5 {[%clk 0:04:57.8]} 3. e5 {[%clk 0:04:55.3]} 3... c5 {[%clk 0:04:56.8]} 4. Nf3
{[%clk 0:04:53.4]} 4... cxd4 {[%clk 0:04:55.4]} 5. Qxd4 {[%clk 0:04:48.3]} 5...
Nc6 {[%clk 0:04:54.1]} 6. Bb5 {[%clk 0:04:44.8]} 6... Ne7 {[%clk 0:04:43.9]} 7.
O-O {[%clk 0:04:34.6]} 7... Bd7 {[%clk 0:04:41.7]} 8. Bxc6 {[%clk 0:04:27.4]}
8... Nxc6 {[%clk 0:04:40.4]} 9. Qe3 {[%clk 0:03:53.9]} 9... Be7 {[%clk
0:04:36.9]} 10. Rd1 {[%clk 0:03:12]} 10... O-O {[%clk 0:04:35.3]} 11. c4 {[%clk
0:03:06.3]} 11... dxc4 {[%clk 0:04:29.3]} 12. Nc3 {[%clk 0:03:03.8]} 12... a6
{[%clk 0:04:23.1]} 13. Qe4 {[%clk 0:02:54.2]} 13... Qc7 {[%clk 0:04:21.3]} 14.
Qxc4 {[%clk 0:02:50.7]} 14... Rac8 {[%clk 0:04:17.8]} 15. Qg4 {[%clk 0:02:42]}
15... Rfd8 {[%clk 0:04:13.3]} 16. Bh6 {[%clk 0:02:33]} 16... Bf8 {[%clk
0:04:07.2]} 17. Bg5 {[%clk 0:02:26.5]} 17... Be7 {[%clk 0:04:00.5]} 18. Bf6
{[%clk 0:02:14.4]} 18... Bf8 {[%clk 0:03:05.5]} 19. Bxd8 {[%clk 0:02:01.9]}
19... Rxd8 {[%clk 0:03:03.5]} 20. Ne4 {[%clk 0:01:51.6]} 20... Nxe5 {[%clk
0:02:55.4]} 21. Nf6+ {[%clk 0:01:30.7]} 21... Kh8 {[%clk 0:02:52.5]} 22. Nxe5
{[%clk 0:01:25.6]} 22... Qxe5 {[%clk 0:02:42.6]} 23. Nxd7 {[%clk 0:01:17.6]}
23... Qxb2 {[%clk 0:02:34.2]} 24. Nxf8 {[%clk 0:00:53.9]} 24... Rxf8 {[%clk
0:02:31.9]} 25. Rdb1 {[%clk 0:00:48.5]} 25... Qe5 {[%clk 0:02:26.9]} 26. Re1
{[%clk 0:00:33.6]} 26... Qa5 {[%clk 0:02:25.4]} 27. a3 {[%clk 0:00:29.9]} 27...
b5 {[%clk 0:02:23.9]} 28. Qb4 {[%clk 0:00:27.1]} 28... Qd8 {[%clk 0:02:21.9]}
29. Red1 {[%clk 0:00:25]} 29... Qb8 {[%clk 0:02:20.2]} 30. Rd7 {[%clk
0:00:21.7]} 30... h6 {[%clk 0:02:15.2]} 31. Rad1 {[%clk 0:00:19.6]} 31... Rg8
{[%clk 0:02:10.5]} 32. Qa5 {[%clk 0:00:17]} 32... Qe5 {[%clk 0:02:03.8]} 33. Rd8
{[%clk 0:00:13]} 33... Rxd8 {[%clk 0:02:02.4]} 34. Rxd8+ {[%clk 0:00:11.3]}
34... Kh7 {[%clk 0:02:00.9]} 35. Rd1 {[%clk 0:00:10]} 35... Qb2 {[%clk
0:01:58.3]} 36. Qd2 {[%clk 0:00:07.7]} 36... Qf6 {[%clk 0:01:54.3]} 37. Qe3
{[%clk 0:00:06]} 37... g6 {[%clk 0:01:53]} 38. Qf3 {[%clk 0:00:05.4]} 38... Qe7
{[%clk 0:01:51.5]} 39. Qg3 {[%clk 0:00:04.4]} 39... h5 {[%clk 0:01:50.3]} 40.
Qf3 {[%clk 0:00:03.7]} 40... Qe8 {[%clk 0:01:49]} 41. Qh3 {[%clk 0:00:03.1]}
41... Qe7 {[%clk 0:01:47.8]} 42. Qf3 {[%clk 0:00:02.2]} 42... Qe8 {[%clk
0:01:47.1]} 43. Qg3 {[%clk 0:00:02.1]} 43... Qf8 {[%clk 0:01:45.5]} 44. Qf3
{[%clk 0:00:02]} 44... Qe7 {[%clk 0:01:44.4]} 45. Rc1 {[%clk 0:00:01.9]} 45...
b4 {[%clk 0:01:39]} 46. h3 {[%clk 0:00:01.8]} 46... bxa3 {[%clk 0:01:37.9]} 47.
Ra1 {[%clk 0:00:00.5]} 47... Qb4 {[%clk 0:01:35.9]} 0-1

[Event "Live Chess"]
[Site "Chess.com"]
[Date "2023.05.20"]
[Round "-"]
[White "MaximKhimchenko"]
[Black "Ferrarifan27"]
[Result "0-1"]
[WhiteElo "1378"]
[BlackElo "2108"]
[TimeControl "300"]
[EndTime "9:32:33 PDT"]
[Termination "Ferrarifan27 won by resignation"]

1. e4 {[%clk 0:04:57]} 1... e5 {[%clk 0:04:58.5]} 2. Nf3 {[%clk 0:04:56]} 2...
Nc6 {[%clk 0:04:57.9]} 3. d4 {[%clk 0:04:55.4]} 3... exd4 {[%clk 0:04:56.7]} 4.
Nxd4 {[%clk 0:04:55.3]} 4... Qh4 {[%clk 0:04:54.5]} 5. Nxc6 {[%clk 0:04:53.9]}
5... Qxe4+ {[%clk 0:04:52.2]} 6. Qe2 {[%clk 0:04:53.3]} 6... Qxe2+ {[%clk
0:04:50.4]} 7. Bxe2 {[%clk 0:04:53.2]} 7... dxc6 {[%clk 0:04:49.7]} 8. O-O
{[%clk 0:04:53.1]} 8... Nf6 {[%clk 0:04:48.2]} 9. Re1 {[%clk 0:04:52]} 9... Be6
{[%clk 0:04:39.7]} 10. Nc3 {[%clk 0:04:48.5]} 10... O-O-O {[%clk 0:04:38.4]} 11.
Bg5 {[%clk 0:04:43.9]} 11... Be7 {[%clk 0:04:37.2]} 12. Bxf6 {[%clk 0:04:40.5]}
12... Bxf6 {[%clk 0:04:35.8]} 13. Ne4 {[%clk 0:04:37.7]} 13... Bxb2 {[%clk
0:04:33.5]} 14. Rab1 {[%clk 0:04:35.7]} 14... Bd4 {[%clk 0:04:29.6]} 15. c3
{[%clk 0:04:34]} 15... Bb6 {[%clk 0:04:28.3]} 16. a4 {[%clk 0:04:32.8]} 16...
Bf5 {[%clk 0:04:27]} 17. Bf3 {[%clk 0:04:29.7]} 17... Rhe8 {[%clk 0:04:21.3]}
18. a5 {[%clk 0:04:27.4]} 18... Bxa5 {[%clk 0:04:19.8]} 19. Nc5 {[%clk
0:04:20.8]} 19... Bxb1 {[%clk 0:04:17.4]} 20. Rxb1 {[%clk 0:04:17.7]} 20... Bb6
{[%clk 0:04:15.1]} 0-1

[Event "Live Chess"]
[Site "Chess.com"]
[Date "2023.05.20"]
[Round "-"]
[White "aliciabutteriss"]
[Black "Chesscoach_Golichenko"]
[Result "0-1"]
[WhiteElo "512"]
[BlackElo "2644"]
[TimeControl "300"]
[EndTime "9:32:38 PDT"]
[Termination "Chesscoach_Golichenko won by checkmate"]

1. e4 {[%clk 0:04:55.8]} 1... c5 {[%clk 0:04:56.8]} 2. d4 {[%clk 0:04:49.4]}
2... cxd4 {[%clk 0:04:53]} 3. Qxd4 {[%clk 0:04:48]} 3... Nc6 {[%clk 0:04:50.7]}
4. Qd1 {[%clk 0:04:38.3]} 4... Nf6 {[%clk 0:04:45.1]} 5. Nc3 {[%clk 0:04:33.6]}
5... d6 {[%clk 0:04:36.6]} 6. Bc4 {[%clk 0:04:29.3]} 6... a6 {[%clk 0:04:31]} 7.
Nf3 {[%clk 0:04:23.5]} 7... e6 {[%clk 0:04:16.5]} 8. O-O {[%clk 0:04:20.4]} 8...
Be7 {[%clk 0:04:15.1]} 9. Ng5 {[%clk 0:04:14.7]} 9... h6 {[%clk 0:04:10.9]} 10.
Nf3 {[%clk 0:04:06.3]} 10... O-O {[%clk 0:04:08.3]} 11. Bf4 {[%clk 0:04:00.9]}
11... b5 {[%clk 0:04:06.5]} 12. Bb3 {[%clk 0:03:50.1]} 12... Bb7 {[%clk
0:03:58.3]} 13. e5 {[%clk 0:03:44.9]} 13... dxe5 {[%clk 0:03:54.4]} 14. Qxd8
{[%clk 0:03:36.7]} 14... Rfxd8 {[%clk 0:03:51.6]} 15. Bxe5 {[%clk 0:03:35]}
15... Nxe5 {[%clk 0:03:48.6]} 16. Nxe5 {[%clk 0:03:33.4]} 16... Rac8 {[%clk
0:03:42.4]} 17. Rad1 {[%clk 0:03:19]} 17... Ne4 {[%clk 0:03:37.4]} 18. Rxd8+
{[%clk 0:03:06.4]} 18... Rxd8 {[%clk 0:03:35.7]} 19. Nxe4 {[%clk 0:03:04]} 19...
Bxe4 {[%clk 0:03:33.8]} 20. Nc6 {[%clk 0:02:54.8]} 20... Bxc6 {[%clk 0:03:31.6]}
21. c3 {[%clk 0:02:46.9]} 21... Rd2 {[%clk 0:03:29.2]} 22. Re1 {[%clk
0:02:40.2]} 22... Rxb2 {[%clk 0:03:27.2]} 23. Bxe6 {[%clk 0:02:32.6]} 23... fxe6
{[%clk 0:03:25.1]} 24. h3 {[%clk 0:02:30.2]} 24... Kf7 {[%clk 0:03:23.3]} 25.
Rd1 {[%clk 0:02:27.1]} 25... Bd5 {[%clk 0:03:21]} 26. Rd4 {[%clk 0:02:21.3]}
26... Bc5 {[%clk 0:03:20.2]} 27. Rf4+ {[%clk 0:02:19.5]} 27... Ke7 {[%clk
0:03:19.4]} 28. Kh2 {[%clk 0:02:07.5]} 28... Bd6 {[%clk 0:03:16.3]} 29. g3
{[%clk 0:01:54.6]} 29... Bxf4 {[%clk 0:03:13.1]} 30. gxf4 {[%clk 0:01:52.4]}
30... Rxf2+ {[%clk 0:03:13]} 31. Kg3 {[%clk 0:01:51.2]} 31... Rg2+ {[%clk
0:03:12.3]} 32. Kh4 {[%clk 0:01:48.8]} 32... Bf3 {[%clk 0:03:11.5]} 33. a3
{[%clk 0:01:41]} 33... g5+ {[%clk 0:03:09.3]} 34. fxg5 {[%clk 0:01:32.4]} 34...
hxg5# {[%clk 0:03:09.2]} 0-1

[Event "Live Chess"]
[Site "Chess.com"]
[Date "2023.05.20"]
[Round "-"]
[White "RoaringKnights"]
[Black "viktorskliarov"]
[Result "0-1"]
[WhiteElo "918"]
[BlackElo "2644"]
[TimeControl "300"]
[EndTime "9:32:39 PDT"]
[Termination "viktorskliarov won by checkmate"]

1. d4 {[%clk 0:04:57.3]} 1... Nf6 {[%clk 0:04:57.9]} 2. Nf3 {[%clk 0:04:54.3]}
2... g6 {[%clk 0:04:57.1]} 3. Bf4 {[%clk 0:04:52.4]} 3... Bg7 {[%clk 0:04:56.6]}
4. e3 {[%clk 0:04:49.8]} 4... O-O {[%clk 0:04:55.6]} 5. Bd3 {[%clk 0:04:47.3]}
5... d6 {[%clk 0:04:54.9]} 6. c3 {[%clk 0:04:45.7]} 6... c5 {[%clk 0:04:54.3]}
7. Nbd2 {[%clk 0:04:41.7]} 7... Nc6 {[%clk 0:04:49.8]} 8. Qc2 {[%clk 0:04:32.4]}
8... Rb8 {[%clk 0:04:42.6]} 9. dxc5 {[%clk 0:04:26.7]} 9... e5 {[%clk
0:04:40.9]} 10. Bg3 {[%clk 0:04:21.5]} 10... Nh5 {[%clk 0:04:30.2]} 11. cxd6
{[%clk 0:04:09.4]} 11... Nxg3 {[%clk 0:04:28]} 12. hxg3 {[%clk 0:04:08]} 12...
Qxd6 {[%clk 0:04:27.6]} 13. Ne4 {[%clk 0:03:56.4]} 13... Qe7 {[%clk 0:04:25.4]}
14. Ned2 {[%clk 0:03:38.3]} 14... b5 {[%clk 0:04:22.4]} 15. a3 {[%clk
0:03:27.2]} 15... a6 {[%clk 0:04:15.7]} 16. Be4 {[%clk 0:03:03.1]} 16... Bb7
{[%clk 0:03:57.8]} 17. Bxc6 {[%clk 0:03:00.2]} 17... Bxc6 {[%clk 0:03:56]} 18.
Rb1 {[%clk 0:02:32.8]} 18... Rfd8 {[%clk 0:03:47.3]} 19. Qc1 {[%clk 0:02:28.6]}
19... Rd3 {[%clk 0:03:37.2]} 20. Ke2 {[%clk 0:02:01.9]} 20... Rbd8 {[%clk
0:03:34.1]} 21. Rd1 {[%clk 0:01:52.1]} 21... Qd7 {[%clk 0:03:23.9]} 22. Qc2
{[%clk 0:01:41.6]} 22... Qg4 {[%clk 0:03:17.1]} 23. b4 {[%clk 0:01:20.3]} 23...
e4 {[%clk 0:03:13.4]} 24. Rb2 {[%clk 0:01:01.1]} 24... exf3+ {[%clk 0:03:07.2]}
25. gxf3 {[%clk 0:00:51.7]} 25... Rxd2+ {[%clk 0:03:05.7]} 26. Rxd2 {[%clk
0:00:45.8]} 26... Qxf3+ {[%clk 0:03:04.5]} 27. Ke1 {[%clk 0:00:40.4]} 27... Qh1+
{[%clk 0:03:04.4]} 28. Ke2 {[%clk 0:00:24.5]} 28... Bf3# {[%clk 0:03:04.3]} 0-1